fUST/lending_fUST_20250708
["ID","MTS","AMOUNT","RATE_DAILY","PERIOD"]
[370344214,1751971841846,-460.0,0.00019178,2]
[370344216,1751971841855,-151.0,0.00019178,2]
[370344218,1751971841865,-460.0,0.00019178,2]
[370344220,1751971841874,-151.0,0.00019178,2]
[370344222,1751971841883,-460.0,0.00019178,2]
[370344224,1751971841892,-460.0,0.00019178,2]
[370344226,1751971841902,-460.0,0.00019178,2]
[370344228,1751971841912,-460.0,0.00019178,2]
[370344230,1751971841922,-460.0,0.00019178,2]
[370344232,1751971841931,-460.0,0.00019178,2]
[370344234,1751971841940,-460.0,0.00019178,2]
[370344236,1751971841949,-460.0,0.00019178,2]
[370344238,1751971841958,-460.0,0.00019178,2]
[370344240,1751971841967,-460.0,0.00019178,2]
[370344242,1751971841978,-460.0,0.00019178,2]
[370344244,1751971841987,-462.29326174,0.00019178,2]
[370344246,1751971841996,-460.0,0.00019178,2]
[370344248,1751971842005,-460.0,0.00019178,2]
[370344250,1751971842015,-460.0,0.00019178,2]
[370344252,1751971842024,-460.0,0.00019178,2]
[370344254,1751971842036,-460.0,0.00019178,2]
[370344256,1751971842045,-460.0,0.00019178,2]
[370344258,1751971842055,-151.950016,0.00019178,2]
[370344260,1751971842064,-460.0,0.00019178,2]
[370344262,1751971842075,-460.0,0.00019178,2]
[370344264,1751971842084,-460.0,0.00019178,2]
[370344266,1751971842095,-253.66645716,0.00019178,2]
[370344268,1751971842104,-293.26556853,0.00019178,2]
[370344270,1751971842114,-460.0,0.00019178,2]
[370344272,1751971842124,-151.93086154,0.00019178,2]
[370344274,1751971842132,-460.0,0.00019178,2]
[370344276,1751971842142,-460.0,0.00019178,2]
[370344278,1751971842151,-460.0,0.00019178,2]
[370344280,1751971842161,-460.0,0.00019178,2]
[370344282,1751971842171,-151.0,0.00019178,2]
[370344284,1751971842181,-543.41265806,0.00019178,2]
[370344286,1751971842191,-460.45738334,0.00019178,2]
[370344288,1751971842200,-460.0,0.00019178,2]
[370344290,1751971842210,-151.0,0.00019178,2]
[370344292,1751971842220,-540.0,0.00019178,2]
[370344294,1751971842230,-527.10967869,0.00019178,2]
[370344296,1751971842239,-460.0,0.00019178,2]
[370344298,1751971842248,-460.0,0.00019178,2]
[370344300,1751971842257,-460.0,0.00019178,2]
[370344302,1751971842267,-460.0,0.00019178,2]
[370344304,1751971842276,-460.0,0.00019178,2]
[370344306,1751971842285,-460.0,0.00019178,2]
[370344308,1751971842294,-460.0,0.00019178,2]
[370344310,1751971842303,-151.0,0.00019178,2]
[370344312,1751971842312,-460.0,0.00019178,2]
[370344314,1751971842321,-460.0,0.00019178,2]
[370344316,1751971842331,-151.0,0.00019178,2]
[370344318,1751971842341,-151.0,0.00019178,2]
[370344320,1751971842350,-460.0,0.00019178,2]
[370344322,1751971842359,-460.0,0.00019178,2]
[370344324,1751971842369,-460.0,0.00019178,2]
[370344326,1751971842378,-151.0,0.00019178,2]
[370344327,1751971842387,-151.0,0.00019178,2]
[370344329,1751971842397,-226.629318,0.00019178,2]
[370344331,1751971842406,-151.0,0.00019178,2]
[370344334,1751971842416,-151.0,0.00019178,2]
[370344336,1751971842424,-460.0,0.00019178,2]
[370344339,1751971842433,-151.0,0.00019178,2]
[370344342,1751971842444,-460.0,0.00019178,2]
[370344344,1751971842453,-151.0,0.00019178,2]
[370344347,1751971842462,-460.0,0.00019178,2]
[370344350,1751971842471,-460.0,0.00019178,2]
[370344352,1751971842480,-460.0,0.00019178,2]
[370344355,1751971842489,-460.0,0.00019178,2]
[370344357,1751971842499,-460.0,0.00019178,2]
[370344359,1751971842508,-460.0,0.00019178,2]
[370344361,1751971842518,-460.0,0.00019178,2]
[370344363,1751971842527,-460.0,0.00019178,2]
[370344365,1751971842536,-460.0,0.00019178,2]
[370344367,1751971842545,-460.0,0.00019178,2]
[370344369,1751971842555,-460.0,0.00019178,2]
[370344372,1751971842565,-460.0,0.00019178,2]
[370344374,1751971842574,-460.0,0.00019178,2]
[370344377,1751971842583,-460.0,0.00019178,2]
[370344380,1751971842592,-500.0,0.00019178,2]
[370344383,1751971842602,-709.67,0.00019178,2]
[370344386,1751971842611,-460.0,0.00019178,2]
[370344388,1751971842620,-460.0,0.00019178,2]
[370344390,1751971842630,-540.0,0.00019178,2]
[370344392,1751971842639,-500.0,0.00019178,2]
[370344394,1751971842648,-500.0,0.00019178,2]
[370344396,1751971842657,-460.0,0.00019178,2]
[370344398,1751971842666,-500.0,0.00019178,2]
[370344399,1751971842675,-460.0,0.00019178,2]
[370344400,1751971842685,-500.0,0.00019178,2]
[370344401,1751971842694,-500.0,0.00019178,2]
[370344402,1751971842703,-559.58468014,0.00019178,2]
[370344403,1751971842721,-460.0,0.00019178,2]
[370344404,1751971842732,-460.0,0.00019178,2]
[370344405,1751971842742,-460.0,0.00019178,2]
[370344406,1751971842751,-463.94164286,0.00019178,2]
[370344407,1751971842761,-469.10159919,0.00019178,2]
[370344408,1751971842770,-323.003338,0.00019178,2]
[370344409,1751971842780,-323.003338,0.00019178,2]
[370344410,1751971842789,-460.0,0.00019178,2]
[370344411,1751971842799,-460.0,0.00019178,2]
[370344412,1751971842808,-460.0,0.00019178,2]
[370344413,1751971842817,-4453.24,0.00019178,2]
[370344414,1751971842826,-323.003338,0.00019178,2]
[370344415,1751971842835,-323.003338,0.00019178,2]
[370344416,1751971842845,-460.0,0.00019178,2]
[370344417,1751971842854,-460.0,0.00019178,2]
[370344418,1751971842864,-460.0,0.00019178,2]
[370344432,1751971843008,-643.67,0.00019178,2]
[370344434,1751971843018,-460.0,0.00019178,2]
[370344436,1751971843028,-460.0,0.00019178,2]
[370344438,1751971843039,-460.0,0.00019178,2]
[370344440,1751971843048,-460.0,0.00019178,2]
[370344442,1751971843058,-460.0,0.00019178,2]
[370344444,1751971843067,-460.0,0.00019178,2]
[370344446,1751971843076,-460.0,0.00019178,2]
[370344448,1751971843085,-460.0,0.00019178,2]
[370344450,1751971843095,-460.0,0.00019178,2]
[370344452,1751971843104,-460.0,0.00019178,2]
[370344454,1751971843113,-151.0,0.00019178,2]
[370344456,1751971843123,-151.0,0.00019178,2]
[370344458,1751971843133,-151.0,0.00019178,2]
[370344461,1751971843142,-460.0,0.00019178,2]
[370344463,1751971843151,-460.0,0.00019178,2]
[370344465,1751971843160,-460.0,0.00019178,2]
[370344467,1751971843170,-460.0,0.00019178,2]
[370344469,1751971843180,-460.0,0.00019178,2]
[370344471,1751971843189,-460.0,0.00019178,2]
[370344473,1751971843199,-151.0,0.00019178,2]
[370344475,1751971843208,-151.0,0.00019178,2]
[370344477,1751971843218,-460.0,0.00019178,2]
[370344479,1751971843227,-460.0,0.00019178,2]
[370344481,1751971843236,-460.0,0.00019178,2]
[370344483,1751971843245,-1770.79,0.00019178,2]
[370344485,1751971843254,-460.0,0.00019178,2]
[370344487,1751971843263,-151.0,0.00019178,2]
[370344489,1751971843274,-460.0,0.00019178,2]
[370344491,1751971843284,-151.0,0.00019178,2]
[370344494,1751971843297,-462.3907514,0.00019178,2]
[370344496,1751971843306,-460.0,0.00019178,2]
[370344498,1751971843316,-460.0,0.00019178,2]
[370344500,1751971843326,-460.0,0.00019178,2]
[370344502,1751971843335,-1565.15,0.00019178,2]
[370344504,1751971843345,-460.0,0.00019178,2]
[370344506,1751971843355,-151.0,0.00019178,2]
[370344508,1751971843364,-151.0,0.00019178,2]
[370344510,1751971843373,-460.0,0.00019178,2]
[370344512,1751971843382,-460.0,0.00019178,2]
[370344514,1751971843392,-460.0,0.00019178,2]
[370344516,1751971843402,-839.61,0.00019178,2]
[370344518,1751971843411,-460.0,0.00019178,2]
[370344520,1751971843420,-460.0,0.00019178,2]
[370344522,1751971843429,-460.0,0.00019178,2]
[370344524,1751971843439,-214.25283424,0.00019178,2]
[370344526,1751971843448,-460.0,0.00019178,2]
[370344528,1751971843458,-460.0,0.00019178,2]
[370344530,1751971843467,-460.0,0.00019178,2]
[370344532,1751971843476,-460.0,0.00019178,2]
[370344534,1751971843486,-460.0,0.00019178,2]
[370344536,1751971843495,-392.73719183,0.00019178,2]
[370344538,1751971843504,-541.1911545,0.00019178,2]
[370344540,1751971843514,-466.17,0.00019178,2]
[370344543,1751971843524,-460.0,0.00019178,2]
[370344545,1751971843532,-460.0,0.00019178,2]
[370344547,1751971843542,-460.0,0.00019178,2]
[370344549,1751971843551,-3442.49,0.00019178,2]
[370344551,1751971843560,-460.0,0.00019178,2]
[370344553,1751971843570,-3339.41,0.00019178,2]
[370344555,1751971843579,-25.01157696,0.00019178,2]
[370344603,1751971844026,-434.98842304,0.00019178,2]
[370344605,1751971844041,-460.0,0.00019178,2]
[370344607,1751971844051,-460.0,0.00019178,2]
[370344609,1751971844061,-460.0,0.00019178,2]
[370344611,1751971844070,-460.0,0.00019178,2]
[370344613,1751971844082,-460.0,0.00019178,2]
[370344615,1751971844091,-460.0,0.00019178,2]
[370344617,1751971844100,-460.0,0.00019178,2]
[370344619,1751971844110,-460.0,0.00019178,2]
[370344621,1751971844119,-460.0,0.00019178,2]
[370344623,1751971844129,-460.0,0.00019178,2]
[370344625,1751971844139,-463.71052269,0.00019178,2]
[370344627,1751971844148,-460.0,0.00019178,2]
[370344629,1751971844158,-460.0,0.00019178,2]
[370344631,1751971844167,-460.72385342,0.00019178,2]
[370344633,1751971844176,-460.0,0.00019178,2]
[370344635,1751971844186,-460.0,0.00019178,2]
[370344637,1751971844196,-468.17,0.00019178,2]
[370344638,1751971844205,-460.0,0.00019178,2]
[370344640,1751971844214,-135.19159977,0.00019178,2]
[370344643,1751971844227,-324.80840023,0.00019178,2]
[370344645,1751971844236,-460.0,0.00019178,2]
[370344647,1751971844245,-460.0,0.00019178,2]
[370344649,1751971844254,-193.62939656,0.00019178,2]
[370344651,1751971844266,-266.37060344,0.00019178,2]
[370344653,1751971844275,-460.0,0.00019178,2]
[370344655,1751971844285,-55.15575504,0.00019178,2]
[370344698,1751971844681,-404.84424496,0.00019178,2]
[370344700,1751971844691,-578.05695681,0.00019178,2]
[370344702,1751971844701,-460.0,0.00019178,2]
[370344704,1751971844710,-540.0,0.00019178,2]
[370344706,1751971844719,-286.51891216,0.00019178,2]
[370344709,1751971844730,-173.48108784,0.00019178,2]
[370344711,1751971844739,-460.0,0.00019178,2]
[370344713,1751971844748,-267.333204,0.00019178,2]
[370344715,1751971844758,-460.0,0.00019178,2]
[370344717,1751971844767,-126.38072125,0.00019178,2]
[370344719,1751971844778,-140.95248275,0.00019178,2]
[370344721,1751971844787,-460.0,0.00019178,2]
[370344723,1751971844796,-371.14172004,0.00019178,2]
[370344725,1751971844806,-460.0,0.00019178,2]
[370344727,1751971844816,-460.0,0.00019178,2]
[370344729,1751971844826,-460.0,0.00019178,2]
[370344731,1751971844835,-596.20970849,0.00019178,2]
[370344733,1751971844844,-460.0,0.00019178,2]
[370344735,1751971844853,-344.43449258,0.00019178,2]
[370344737,1751971844865,-115.56550742,0.00019178,2]
[370344739,1751971844875,-267.333204,0.00019178,2]
[370344741,1751971844884,-267.333204,0.00019178,2]
[370344743,1751971844894,-460.0,0.00019178,2]
[370344745,1751971844903,-460.0,0.00019178,2]
[370344747,1751971844912,-460.0,0.00019178,2]
[370344749,1751971844921,-151.0,0.00019178,2]
[370344751,1751971844931,-151.0,0.00019178,2]
[370344753,1751971844940,-460.0,0.00019178,2]
[370344755,1751971844949,-460.0,0.00019178,2]
[370344757,1751971844959,-460.85690716,0.00019178,2]
[370344759,1751971844968,-460.0,0.00019178,2]
[370344761,1751971844977,-460.0,0.00019178,2]
[370344763,1751971844987,-460.0,0.00019178,2]
[370344765,1751971844996,-1050.09,0.00019178,2]
[370344767,1751971845007,-460.0,0.00019178,2]
[370344769,1751971845015,-500.00000001,0.00019178,2]
[370344771,1751971845025,-998.2,0.00019178,2]
[370344773,1751971845035,-460.0,0.00019178,2]
[370344775,1751971845047,-460.0,0.00019178,2]
[370344777,1751971845057,-2374.96,0.00019178,2]
[370344779,1751971845066,-340.05990663,0.00019178,2]
[370344781,1751971845076,-205.6451828,0.00019178,2]
[370344798,1751971845234,-254.3548172,0.00019178,2]
[370344800,1751971845244,-460.0,0.00019178,2]
[370344802,1751971845254,-460.0,0.00019178,2]
[370344804,1751971845263,-460.0,0.00019178,2]
[370344806,1751971845273,-23.91304358,0.00019178,2]
[370344810,1751971845286,-436.08695642,0.00019178,2]
[370344812,1751971845295,-151.0,0.00019178,2]
[370344815,1751971845305,-151.0,0.00019178,2]
[370344817,1751971845314,-151.0,0.00019178,2]
[370344819,1751971845323,-1270.49672104,0.00019178,2]
[370344823,1751971845356,-500.0,0.00018899,2]
[370344825,1751971845365,-1078.61327896,0.00019178,2]
[370344827,1751971845374,-460.0,0.00019178,2]
[370344829,1751971845383,-466.13,0.00019178,2]
[370344831,1751971845392,-460.0,0.00019178,2]
[370344833,1751971845403,-499.03,0.00019178,2]
[370344835,1751971845412,-542.69525169,0.00019178,2]
[370344837,1751971845421,-4500.1,0.00019178,2]
[370344839,1751971845430,-151.0,0.00019178,2]
[370344841,1751971845439,-460.0,0.00019178,2]
[370344843,1751971845449,-151.0,0.00019178,2]
[370344845,1751971845458,-460.0,0.00019178,2]
[370344847,1751971845468,-151.0,0.00019178,2]
[370344849,1751971845477,-460.0,0.00019178,2]
[370344851,1751971845486,-2244.63,0.00019178,2]
[370344853,1751971845496,-460.0,0.00019178,2]
[370344856,1751971845505,-460.0,0.00019178,2]
[370344858,1751971845515,-2804.85,0.00019178,2]
[370344861,1751971845524,-460.0,0.00019178,2]
[370344864,1751971845534,-1867.96,0.00019178,2]
[370344867,1751971845543,-460.0,0.00019178,2]
[370344870,1751971845552,-460.0,0.00019178,2]
[370344873,1751971845561,-460.0,0.00019178,2]
[370344876,1751971845570,-460.0,0.00019178,2]
[370344879,1751971845579,-500.0,0.00019178,2]
[370344882,1751971845589,-460.0,0.00019178,2]
[370344885,1751971845599,-500.0,0.00019178,2]
[370344888,1751971845608,-500.0,0.00019178,2]
[370344891,1751971845617,-500.0,0.00019178,2]
[370344894,1751971845627,-500.0,0.00019178,2]
[370344897,1751971845636,-460.0,0.00019178,2]
[370344900,1751971845645,-460.0,0.00019178,2]
[370344903,1751971845655,-500.0,0.00019178,2]
[370344906,1751971845664,-500.0,0.00019178,2]
[370344909,1751971845673,-500.0,0.00019178,2]
[370344912,1751971845684,-500.0,0.00019178,2]
[370344915,1751971845693,-500.0,0.00019178,2]
[370344917,1751971845702,-500.0,0.00019178,2]
[370344919,1751971845710,-500.0,0.00019178,2]
[370344921,1751971845719,-460.0,0.00019178,2]
[370344923,1751971845728,-500.0,0.00019178,2]
[370344925,1751971845737,-460.0,0.00019178,2]
[370344927,1751971845747,-460.0,0.00019178,2]
[370344929,1751971845756,-460.0,0.00019178,2]
[370344931,1751971845765,-512.3462077,0.00019178,2]
[370344933,1751971845774,-460.0,0.00019178,2]
[370344935,1751971845784,-1165.3,0.00019178,2]
[370344937,1751971845793,-774.75,0.00019178,2]
[370344939,1751971845802,-460.0,0.00019178,2]
[370344941,1751971845811,-460.0,0.00019178,2]
[370344943,1751971845820,-460.0,0.00019178,2]
[370344945,1751971845830,-683.83,0.00019178,2]
[370344947,1751971845839,-460.0,0.00019178,2]
[370344949,1751971845849,-460.0,0.00019178,2]
[370344951,1751971845858,-460.0,0.00019178,2]
[370344953,1751971845867,-460.0,0.00019178,2]
[370344955,1751971845876,-460.0,0.00019178,2]
[370344957,1751971845886,-460.0,0.00019178,2]
[370344959,1751971845896,-460.0,0.00019178,2]
[370344961,1751971845904,-429.73430843,0.00019178,2]
[370344963,1751971845914,-460.0,0.00019178,2]
[370344965,1751971845923,-460.0,0.00019178,2]
[370344967,1751971845932,-571.96396064,0.00019178,2]
[370344969,1751971845941,-460.0,0.00019178,2]
[370344971,1751971845951,-460.0,0.00019178,2]
[370344973,1751971845961,-460.0,0.00019178,2]
[370344975,1751971845970,-460.0,0.00019178,2]
[370344977,1751971845980,-460.0,0.00019178,2]
[370344979,1751971845989,-460.0,0.00019178,2]
[370344981,1751971845999,-460.0,0.00019178,2]
[370344983,1751971846010,-460.0,0.00019178,2]
[370344985,1751971846019,-460.0,0.00019178,2]
[370344987,1751971846028,-460.0,0.00019178,2]
[370344988,1751971846042,-460.0,0.00019178,2]
[370344990,1751971846051,-460.0,0.00019178,2]
[370344992,1751971846060,-460.0,0.00019178,2]
[370344994,1751971846070,-460.0,0.00019178,2]
[370344996,1751971846079,-460.0,0.00019178,2]
[370344999,1751971846091,-460.0,0.00019178,2]
[370345001,1751971846101,-460.0,0.00019178,2]
[370345003,1751971846110,-460.0,0.00019178,2]
[370345004,1751971846122,-2021.92,0.00019178,2]
[370345006,1751971846133,-500.0,0.00019178,2]
[370345008,1751971846144,-460.0,0.00019178,2]
[370345010,1751971846153,-460.0,0.00019178,2]
[370345012,1751971846162,-460.0,0.00019178,2]
[370345014,1751971846171,-1754.33,0.00019178,2]
[370345016,1751971846181,-460.0,0.00019178,2]
[370345028,1751971846280,-460.0,0.00019178,2]
[370345030,1751971846290,-1501.24,0.00019178,2]
[370345032,1751971846299,-158.032985,0.00019178,2]
[370345034,1751971846308,-158.032985,0.00019178,2]
[370345036,1751971846318,-460.0,0.00019178,2]
[370345038,1751971846327,-158.032985,0.00019178,2]
[370345039,1751971846336,-158.032985,0.00019178,2]
[370345040,1751971846345,-460.0,0.00019178,2]
[370345041,1751971846354,-460.0,0.00019178,2]
[370345042,1751971846363,-460.0,0.00019178,2]
[370345043,1751971846373,-460.0,0.00019178,2]
[370345044,1751971846382,-460.0,0.00019178,2]
[370345045,1751971846391,-460.0,0.00019178,2]
[370345046,1751971846401,-460.0,0.00019178,2]
[370345047,1751971846410,-460.0,0.00019178,2]
[370345048,1751971846418,-460.0,0.00019178,2]
[370345049,1751971846427,-651.96,0.00019178,2]
[370345050,1751971846436,-460.0,0.00019178,2]
[370345051,1751971846445,-460.0,0.00019178,2]
[370345052,1751971846454,-460.0,0.00019178,2]
[370345053,1751971846463,-460.0,0.00019178,2]
[370345054,1751971846473,-460.0,0.00019178,2]
[370345055,1751971846482,-460.0,0.00019178,2]
[370345056,1751971846491,-1106.63,0.00019178,2]
[370345057,1751971846501,-460.0,0.00019178,2]
[370345058,1751971846510,-411.26658203,0.00019178,2]
[370345059,1751971846519,-460.0,0.00019178,2]
[370345060,1751971846528,-2016.92,0.00019178,2]
[370345061,1751971846537,-460.0,0.00019178,2]
[370345062,1751971846547,-460.0,0.00019178,2]
[370345063,1751971846556,-460.0,0.00019178,2]
[370345065,1751971846565,-460.0,0.00019178,2]
[370345066,1751971846575,-460.60616054,0.00019178,2]
[370345068,1751971846584,-460.0,0.00019178,2]
[370345070,1751971846593,-460.0,0.00019178,2]
[370345072,1751971846603,-460.0,0.00019178,2]
[370345074,1751971846612,-460.0,0.00019178,2]
[370345076,1751971846621,-617.3,0.00019178,2]
[370345078,1751971846630,-460.0,0.00019178,2]
[370345080,1751971846639,-460.0,0.00019178,2]
[370345082,1751971846648,-460.0,0.00019178,2]
[370345084,1751971846658,-1239.47,0.00019178,2]
[370345086,1751971846668,-460.0,0.00019178,2]
[370345088,1751971846677,-460.0,0.00019178,2]
[370345090,1751971846687,-460.0,0.00019178,2]
[370345092,1751971846696,-460.0,0.00019178,2]
[370345094,1751971846706,-460.0,0.00019178,2]
[370345096,1751971846715,-460.0,0.00019178,2]
[370345098,1751971846723,-460.0,0.00019178,2]
[370345100,1751971846733,-460.0,0.00019178,2]
[370345102,1751971846742,-500.0,0.00019178,2]
[370345104,1751971846751,-500.0,0.00019178,2]
[370345106,1751971846760,-500.0,0.00019178,2]
[370345108,1751971846769,-500.0,0.00019178,2]
[370345110,1751971846778,-500.0,0.00019178,2]
[370345112,1751971846787,-621.39781811,0.00019178,2]
[370345114,1751971846796,-460.0,0.00019178,2]
[370345116,1751971846805,-519.81075925,0.00019178,2]
[370345118,1751971846814,-460.0,0.00019178,2]
[370345120,1751971846823,-460.0,0.00019178,2]
[370345122,1751971846833,-460.0,0.00019178,2]
[370345124,1751971846843,-460.0,0.00019178,2]
[370345126,1751971846852,-460.0,0.00019178,2]
[370345128,1751971846862,-500.0,0.00019178,2]
[370345130,1751971846871,-500.0,0.00019178,2]
[370345132,1751971846880,-500.0,0.00019178,2]
[370345134,1751971846889,-537.39,0.00019178,2]
[370345136,1751971846898,-500.0,0.00019178,2]
[370345138,1751971846907,-460.0,0.00019178,2]
[370345140,1751971846918,-500.0,0.00019178,2]
[370345142,1751971846927,-460.0,0.00019178,2]
[370345144,1751971846937,-500.0,0.00019178,2]
[370345146,1751971846946,-500.0,0.00019178,2]
[370345148,1751971846956,-460.0,0.00019178,2]
[370345150,1751971846965,-500.0,0.00019178,2]
[370345152,1751971846975,-500.0,0.00019178,2]
[370345154,1751971846984,-162.67127379,0.00019178,2]
[370345156,1751971846994,-5000.0,0.00019178,2]
[370345159,1751971847007,-3240.05966251,0.00019178,2]
[370345162,1751971847025,-45360.9061551,0.00019178,2]
[370345164,1751971847042,-187.97924,0.00019178,2]
[370345167,1751971847058,-156.151714,0.000192,2]
[370345170,1751971847074,-167.524826,0.000192,2]
[370345172,1751971847090,-167.52483,0.000192,2]
[370345175,1751971847107,-502.14975,0.000192,2]
[370345178,1751971847125,-502.149758,0.000192,2]
[370345181,1751971847140,-151.0,0.000192,2]
[370345183,1751971847154,-151.0,0.000192,2]
[370345186,1751971847171,-298.0,0.000192,2]
[370345188,1751971847184,-151.0,0.000192,2]
[370345191,1751971847198,-151.0,0.000192,2]
[370345194,1751971847212,-151.0,0.000192,2]
[370345196,1751971847229,-158.032985,0.000192,2]
[370345199,1751971847244,-158.032985,0.000192,2]
[370345202,1751971847260,-151.0,0.00019205,2]
[370345204,1751971847275,-151.0,0.00019205,2]
[370345207,1751971847287,-198.0,0.00019233,2]
[370345209,1751971847302,-151.0,0.0001924,2]
[370345212,1751971847318,-218339.48570825,0.00019251,7]
[370345215,1751971847337,-2500.281,0.00019251,7]
[370345218,1751971847355,-917.96657048,0.00019251,7]
[370345226,1751971847422,-421.83972121,0.00019251,7]
[370345265,1751971847793,-524.65314148,0.00018899,2]
[370345267,1751971847803,-111.39635852,0.00018899,2]
[370345269,1751971847814,-388.60364148,0.00018899,2]
[370345271,1751971847824,-500.0,0.00018899,2]
[370345273,1751971847833,-143.74519558,0.00018899,2]
[370345277,1751971847855,-356.25480442,0.00018899,2]
[370345279,1751971847865,-127.96344594,0.00018899,2]
[370345281,1751971847876,-372.03655406,0.00018899,2]
[370345283,1751971847886,-5000.0,0.00018986,2]
[370345285,1751971847895,-651.7,0.00019168,3]
[370345287,1751971847905,-460.0,0.00019178,2]
[370345289,1751971847915,-4718.74821594,0.00019251,7]
[370347765,1751972136769,-349.14938219,0.00018076,2]
[370347766,1751972140171,-486.24246144,0.00018076,2]
[370347767,1751972142479,-347.2935691,0.00018076,2]
[370347768,1751972146848,-152.7910054,0.00018076,2]
[370347769,1751972153944,-500.0,0.00018076,2]
[370347770,1751972156285,-504.39562699,0.00018076,2]
[370347771,1751972159232,-279.70266014,0.00018076,2]
[370347772,1751972161776,-181.93038646,0.00018076,2]
[370347773,1751972164059,-355.16044804,0.00018076,2]
[370347774,1751972169443,-257.5157006,0.00018076,2]
[370347775,1751972172363,-242.4842994,0.00018076,2]
[370347776,1751972243132,1115.54995789,0.00018001,2]
[370347777,1751972259419,167.87707996,0.00025221,120]
[370347778,1751972315274,-278.0379648,0.00018076,2]
[370347779,1751972317073,-166.7900453,0.00018076,2]
[370347780,1751972318992,-156.4623356,0.00018076,2]
[370347781,1751972320980,-130.21318694,0.00018076,2]
[370347783,1751972477313,-211.3079145,0.00018076,2]
[370347784,1751972484371,-158.47889856,0.00018056,2]
[370347785,1751972487520,-12.38819254,0.00018056,2]
[370347786,1751972562935,-286.0,0.00018154,2]
[370347788,1751972629287,920.0,0.00027397,120]
[370347789,1751972656350,469.5710168,0.00017993,2]
[370347792,1751972808195,-153.27234301,0.00018097,2]
[370347793,1751972869359,3048.901651,0.00017946,2]
[370347808,1751973037135,-14.72765699,0.00018097,2]
[370347810,1751973037144,-168.0,0.000181,2]
[370347812,1751973037153,-279.11183957,0.00018236,2]
[370347814,1751973037163,-167.46710374,0.00018236,2]
[370347816,1751973037172,-168.0,0.00018368,2]
[370347818,1751973037182,-176.13437077,0.000185,2]
[370347821,1751973037191,-286.0,0.00018551,2]
[370347823,1751973037202,-153.0,0.0001863,2]
[370347825,1751973037211,-153.0,0.0001863,2]
[370347826,1751973037220,-286.0,0.00018719,2]
[370347829,1751973037229,-286.0,0.00018771,2]
[370347831,1751973037239,-207.4,0.00018789,2]
[370347833,1751973037249,-1265.60507811,0.000188,2]
[370347835,1751973037258,-733.2758648,0.000188,2]
[370347837,1751973037267,-792.657267,0.00018865,2]
[370347839,1751973037277,-286.0,0.0001891,2]
[370347841,1751973037287,-286.0,0.00018937,2]
[370347843,1751973037296,-1200.0,0.00019011,2]
[370347844,1751973037305,-800.0,0.00019012,2]
[370347846,1751973037315,-168.0,0.00019059,2]
[370347848,1751973037324,-300.0,0.00019076,2]
[370347850,1751973037334,-300.0,0.00019076,2]
[370347852,1751973037343,-300.0,0.00019076,2]
[370347854,1751973037352,-300.0,0.00019076,2]
[370347856,1751973037361,-471.0,0.00019077,2]